[Event "Live Chess"]
[Site "Chess.com"]
[Date "2024.06.02"]
[Round "-"]
[White "Kyrylo7770"]
[Black "GwaryTek"]
[Result "1-0"]
[WhiteElo "1644"]
[BlackElo "1829"]
[TimeControl "300"]
[EndTime "3:42:50 PDT"]
[Termination "Kyrylo7770 won on time"]

1. d4 {[%clk 0:04:59]} 1... Nf6 {[%clk 0:04:59.1]} 2. Nf3 {[%clk 0:04:58.6]}
2... d5 {[%clk 0:04:58.3]} 3. Bg5 {[%clk 0:04:58.3]} 3... Ne4 {[%clk 0:04:56.3]}
4. Bh4 {[%clk 0:04:57.4]} 4... c5 {[%clk 0:04:54.3]} 5. e3 {[%clk 0:04:56.7]}
5... Nc6 {[%clk 0:04:52.7]} 6. c3 {[%clk 0:04:56.1]} 6... Bg4 {[%clk 0:04:50.9]}
7. Be2 {[%clk 0:04:55.3]} 7... Qb6 {[%clk 0:04:43.4]} 8. b3 {[%clk 0:04:54.1]}
8... cxd4 {[%clk 0:04:39.8]} 9. Nxd4 {[%clk 0:04:51.8]} 9... Bxe2 {[%clk
0:04:35.6]} 10. Nxe2 {[%clk 0:04:46.2]} 10... a5 {[%clk 0:04:30.9]} 11. Nd2
{[%clk 0:04:43.4]} 11... Rd8 {[%clk 0:04:23.8]} 12. O-O {[%clk 0:04:40.9]} 12...
g6 {[%clk 0:04:20.3]} 13. Nd4 {[%clk 0:04:39.1]} 13... Nxc3 {[%clk 0:04:17.7]}
14. Qg4 {[%clk 0:04:29.1]} 14... f5 {[%clk 0:04:08.9]} 15. Qg5 {[%clk
0:04:23.8]} 15... Ne4 {[%clk 0:03:51.3]} 16. Nxe4 {[%clk 0:04:17.5]} 16... dxe4
{[%clk 0:03:49.7]} 17. Nxc6 {[%clk 0:04:08.9]} 17... Qxc6 {[%clk 0:03:31.2]} 18.
Rac1 {[%clk 0:04:07.4]} 18... Qb6 {[%clk 0:03:19.7]} 19. Bg3 {[%clk 0:04:05.5]}
19... Qf6 {[%clk 0:03:09.5]} 20. Qf4 {[%clk 0:04:01.6]} 20... Bg7 {[%clk
0:03:05]} 21. Bh4 {[%clk 0:03:59.2]} 21... Qd6 {[%clk 0:02:56.8]} 22. Qg5 {[%clk
0:03:52.6]} 22... Bf6 {[%clk 0:02:50.1]} 23. Qh6 {[%clk 0:03:51.5]} 23... Bxh4
{[%clk 0:02:31]} 24. Qxh4 {[%clk 0:03:48.1]} 24... O-O {[%clk 0:02:30.2]} 25.
Qg5 {[%clk 0:03:43.2]} 25... Rf6 {[%clk 0:02:08.4]} 26. g3 {[%clk 0:03:34.3]}
26... Qd7 {[%clk 0:01:58.4]} 27. h4 {[%clk 0:03:27.5]} 27... Kg7 {[%clk
0:01:45]} 28. h5 {[%clk 0:03:24.6]} 28... h6 {[%clk 0:01:42.5]} 29. Qh4 {[%clk
0:03:08.9]} 29... g5 {[%clk 0:01:40.9]} 30. Qh3 {[%clk 0:03:05.9]} 30... f4
{[%clk 0:01:34]} 31. Qxd7 {[%clk 0:03:03.4]} 31... Rxd7 {[%clk 0:01:33.9]} 32.
gxf4 {[%clk 0:02:57.4]} 32... gxf4 {[%clk 0:01:33.8]} 33. f3 {[%clk 0:02:51.1]}
33... fxe3 {[%clk 0:00:25]} 34. f4 {[%clk 0:02:47.6]} 34... e2 {[%clk
0:00:24.4]} 35. Rfe1 {[%clk 0:02:45.6]} 35... Rxf4 {[%clk 0:00:19]} 36. Rxe2
{[%clk 0:02:42.2]} 36... Rg4+ {[%clk 0:00:10.1]} 37. Rg2 {[%clk 0:02:41.1]}
37... Rxg2+ {[%clk 0:00:08.1]} 38. Kxg2 {[%clk 0:02:40.4]} 38... Kf6 {[%clk
0:00:07.3]} 39. Rf1+ {[%clk 0:02:38.3]} 39... Kg5 {[%clk 0:00:06.1]} 40. Kg3
{[%clk 0:02:36.1]} 40... Rd3+ {[%clk 0:00:04.5]} 41. Kh2 {[%clk 0:02:34]} 41...
Rd2+ {[%clk 0:00:04]} 42. Kh3 {[%clk 0:02:32.9]} 42... Rxa2 {[%clk 0:00:03.2]}
43. Rg1+ {[%clk 0:02:31.4]} 43... Kxh5 {[%clk 0:00:01.8]} 44. Re1 {[%clk
0:02:27.3]} 44... Rb2 {[%clk 0:00:00.6]} 45. Rxe4 {[%clk 0:02:25.3]} 1-0

[Event "Live Chess"]
[Site "Chess.com"]
[Date "2024.06.02"]
[Round "-"]
[White "NottheBishopSacrifice"]
[Black "RockTroll"]
[Result "1-0"]
[WhiteElo "2322"]
[BlackElo "2172"]
[TimeControl "300"]
[EndTime "3:42:52 PDT"]
[Termination "NottheBishopSacrifice won by checkmate"]

1. Nf3 {[%clk 0:04:58.6]} 1... Nf6 {[%clk 0:04:59.1]} 2. e3 {[%clk 0:04:58.3]}
2... g6 {[%clk 0:04:58]} 3. b3 {[%clk 0:04:57.4]} 3... Bg7 {[%clk 0:04:52.8]} 4.
Bb2 {[%clk 0:04:56.4]} 4... O-O {[%clk 0:04:45.9]} 5. Be2 {[%clk 0:04:55.8]}
5... d6 {[%clk 0:04:42.8]} 6. O-O {[%clk 0:04:54.5]} 6... e5 {[%clk 0:04:41.8]}
7. c4 {[%clk 0:04:51.6]} 7... Nc6 {[%clk 0:04:40.4]} 8. Nc3 {[%clk 0:04:50.1]}
8... Be6 {[%clk 0:04:17.1]} 9. d4 {[%clk 0:04:48.1]} 9... exd4 {[%clk
0:04:13.7]} 10. exd4 {[%clk 0:04:46.7]} 10... d5 {[%clk 0:04:13.1]} 11. c5
{[%clk 0:04:45.7]} 11... b6 {[%clk 0:04:08.3]} 12. cxb6 {[%clk 0:04:35.9]} 12...
axb6 {[%clk 0:04:05.3]} 13. Rc1 {[%clk 0:04:35.2]} 13... Qd6 {[%clk 0:03:53.6]}
14. Nb5 {[%clk 0:04:32]} 14... Qd7 {[%clk 0:03:52.9]} 15. Ne5 {[%clk 0:04:23.1]}
15... Nxe5 {[%clk 0:03:51.5]} 16. Rxc7 {[%clk 0:04:22.7]} 16... Qd8 {[%clk
0:03:46.5]} 17. dxe5 {[%clk 0:04:21.5]} 17... Ne4 {[%clk 0:03:44.9]} 18. a4
{[%clk 0:04:09.7]} 18... Nc5 {[%clk 0:03:32.5]} 19. f4 {[%clk 0:04:00.1]} 19...
Bd7 {[%clk 0:03:27.6]} 20. Rxc5 {[%clk 0:03:55.1]} 20... bxc5 {[%clk 0:03:26.8]}
21. Qxd5 {[%clk 0:03:54.5]} 21... Be6 {[%clk 0:03:21.4]} 22. Qxc5 {[%clk
0:03:48.8]} 22... Bxb3 {[%clk 0:03:20.5]} 23. Nd6 {[%clk 0:03:40.4]} 23... Bxa4
{[%clk 0:03:09.9]} 24. Bc4 {[%clk 0:03:34.2]} 24... Bd7 {[%clk 0:03:07.9]} 25.
Ba3 {[%clk 0:02:20.8]} 25... Qb8 {[%clk 0:02:54.6]} 26. Nxf7 {[%clk 0:01:53.1]}
26... Rxf7 {[%clk 0:02:49.3]} 27. e6 {[%clk 0:01:45.9]} 27... Bxe6 {[%clk
0:02:31.6]} 28. Bxe6 {[%clk 0:01:37.8]} 28... Qa7 {[%clk 0:02:29.3]} 29. Qxa7
{[%clk 0:01:30.5]} 29... Rxa7 {[%clk 0:02:27.3]} 30. Bc5 {[%clk 0:01:30.1]}
30... Rd7 {[%clk 0:02:22.4]} 31. Rb1 {[%clk 0:01:27]} 31... Bf6 {[%clk
0:02:12.1]} 32. Rb8+ {[%clk 0:01:23.2]} 32... Kg7 {[%clk 0:02:11.2]} 33. Bxf7
{[%clk 0:01:20.6]} 33... Rxf7 {[%clk 0:02:10.9]} 34. g3 {[%clk 0:01:17.2]} 34...
Rd7 {[%clk 0:02:09.5]} 35. Kg2 {[%clk 0:01:15.9]} 35... Rd2+ {[%clk 0:02:07.4]}
36. Kh3 {[%clk 0:01:13.7]} 36... Rd7 {[%clk 0:02:04.4]} 37. Ra8 {[%clk
0:01:08.3]} 37... Rf7 {[%clk 0:02:02.8]} 38. Ra2 {[%clk 0:01:07]} 38... Rd7
{[%clk 0:02:01.2]} 39. Kg2 {[%clk 0:01:05.9]} 39... Rc7 {[%clk 0:01:57.2]} 40.
Be3 {[%clk 0:01:04.2]} 40... Rd7 {[%clk 0:01:56.5]} 41. Kf3 {[%clk 0:01:02.9]}
41... Rc7 {[%clk 0:01:55.3]} 42. g4 {[%clk 0:01:01.9]} 42... h6 {[%clk
0:01:52.2]} 43. h4 {[%clk 0:01:00.6]} 43... Bxh4 {[%clk 0:01:49.4]} 44. Bd4+
{[%clk 0:00:59.5]} 44... Kh7 {[%clk 0:01:47.7]} 45. Be5 {[%clk 0:00:57.6]} 45...
Rd7 {[%clk 0:01:44.4]} 46. Ke4 {[%clk 0:00:56.6]} 46... Be7 {[%clk 0:01:43.2]}
47. f5 {[%clk 0:00:55.4]} 47... gxf5+ {[%clk 0:01:41.9]} 48. gxf5 {[%clk
0:00:55.3]} 48... Bf8 {[%clk 0:01:37.4]} 49. Rg2 {[%clk 0:00:54]} 49... Bg7
{[%clk 0:01:34]} 50. f6 {[%clk 0:00:53.3]} 50... Bf8 {[%clk 0:01:33]} 51. Kf5
{[%clk 0:00:52.3]} 51... Rb7 {[%clk 0:01:25.6]} 52. Ke6 {[%clk 0:00:49.2]} 52...
Bb4 {[%clk 0:01:19.9]} 53. f7 {[%clk 0:00:45.7]} 53... Rb6+ {[%clk 0:01:14.8]}
54. Kf5 {[%clk 0:00:43.6]} 54... Rb5 {[%clk 0:01:09.8]} 55. Rg7+ {[%clk
0:00:40.3]} 55... Kh8 {[%clk 0:01:08.3]} 56. Rg8+ {[%clk 0:00:40]} 56... Kh7
{[%clk 0:01:07.6]} 57. Rh8# {[%clk 0:00:39.7]} 1-0

[Event "Live Chess"]
[Site "Chess.com"]
[Date "2024.06.02"]
[Round "-"]
[White "dhairyapandyauk"]
[Black "SimonBoy1"]
[Result "0-1"]
[WhiteElo "1652"]
[BlackElo "1532"]
[TimeControl "300"]
[EndTime "3:43:08 PDT"]
[Termination "SimonBoy1 won by resignation"]

1. e4 {[%clk 0:04:56.1]} 1... c5 {[%clk 0:04:58.7]} 2. c3 {[%clk 0:04:55]} 2...
d5 {[%clk 0:04:56.8]} 3. exd5 {[%clk 0:04:54.7]} 3... Qxd5 {[%clk 0:04:56.7]} 4.
Nf3 {[%clk 0:04:54.4]} 4... g6 {[%clk 0:04:55.4]} 5. Na3 {[%clk 0:04:54.3]} 5...
a6 {[%clk 0:04:53.9]} 6. Bc4 {[%clk 0:04:54.2]} 6... Qe4+ {[%clk 0:04:52.5]} 7.
Be2 {[%clk 0:04:53.2]} 7... Bg7 {[%clk 0:04:50.9]} 8. Qc2 {[%clk 0:04:52]} 8...
Qxc2 {[%clk 0:04:48.4]} 9. Nxc2 {[%clk 0:04:51.9]} 9... Bf6 {[%clk 0:04:48.2]}
10. d4 {[%clk 0:04:50.9]} 10... cxd4 {[%clk 0:04:46.7]} 11. Ncxd4 {[%clk
0:04:50.6]} 11... Bg7 {[%clk 0:04:46.1]} 12. Bf4 {[%clk 0:04:46.9]} 12... Nf6
{[%clk 0:04:40.1]} 13. O-O-O {[%clk 0:04:42.3]} 13... O-O {[%clk 0:04:37]} 14.
Rhe1 {[%clk 0:04:37.6]} 14... Re8 {[%clk 0:04:34.7]} 15. Bc4 {[%clk 0:04:36]}
15... Nbd7 {[%clk 0:04:33]} 16. Ng5 {[%clk 0:04:33.1]} 16... e6 {[%clk
0:04:28.8]} 17. Ndxe6 {[%clk 0:04:29.7]} 17... Nb6 {[%clk 0:04:23]} 18. Bb3
{[%clk 0:04:27.8]} 18... fxe6 {[%clk 0:04:19.5]} 19. Nxe6 {[%clk 0:04:20.2]}
19... Bxe6 {[%clk 0:04:16.3]} 20. Bxe6+ {[%clk 0:04:20.1]} 20... Kh8 {[%clk
0:04:13]} 21. Rd6 {[%clk 0:04:19.2]} 21... Na4 {[%clk 0:04:01.1]} 22. Red1
{[%clk 0:04:01.4]} 22... Nc5 {[%clk 0:03:46.4]} 23. Bc4 {[%clk 0:03:52.4]} 23...
Nfe4 {[%clk 0:03:44.9]} 24. R6d5 {[%clk 0:03:45.7]} 24... b5 {[%clk 0:03:36.8]}
25. f3 {[%clk 0:03:33.9]} 25... bxc4 {[%clk 0:03:08.6]} 26. fxe4 {[%clk
0:03:32.7]} 26... Nxe4 {[%clk 0:03:08.5]} 27. R5d4 {[%clk 0:03:29.6]} 27... Bxd4
{[%clk 0:03:02.4]} 28. Rxd4 {[%clk 0:03:26.7]} 28... Nf2 {[%clk 0:02:53.7]} 29.
Bg5 {[%clk 0:03:13.6]} 29... Re2 {[%clk 0:02:37.2]} 30. Bf6+ {[%clk 0:02:58.5]}
30... Kg8 {[%clk 0:02:35.5]} 31. Rd7 {[%clk 0:02:55.6]} 31... Nd3+ {[%clk
0:02:29]} 32. Kd1 {[%clk 0:02:52.5]} 32... Rxb2 {[%clk 0:02:19.2]} 33. Rg7+
{[%clk 0:02:49.1]} 33... Kf8 {[%clk 0:02:18.7]} 34. Rxh7 {[%clk 0:02:47.1]}
34... Re8 {[%clk 0:02:14.9]} 35. Bg7+ {[%clk 0:02:27.1]} 35... Kg8 {[%clk
0:02:12.4]} 36. Rh8+ {[%clk 0:02:26.1]} 36... Kf7 {[%clk 0:02:04.7]} 37. Rxe8
{[%clk 0:02:24.1]} 37... Kxe8 {[%clk 0:02:02.4]} 0-1

[Event "Live Chess"]
[Site "Chess.com"]
[Date "2024.06.02"]
[Round "-"]
[White "RamsayFlayer"]
[Black "f4nomore"]
[Result "1-0"]
[WhiteElo "1939"]
[BlackElo "1254"]
[TimeControl "300"]
[EndTime "3:43:10 PDT"]
[Termination "RamsayFlayer won by resignation"]

1. e4 {[%clk 0:04:58]} 1... g6 {[%clk 0:04:58.9]} 2. d4 {[%clk 0:04:56.6]} 2...
Bg7 {[%clk 0:04:57.8]} 3. Nf3 {[%clk 0:04:55.8]} 3... d6 {[%clk 0:04:56.9]} 4.
Nc3 {[%clk 0:04:54]} 4... Nd7 {[%clk 0:04:55.1]} 5. Bc4 {[%clk 0:04:53.2]} 5...
Ngf6 {[%clk 0:04:51.8]} 6. O-O {[%clk 0:04:51.9]} 6... O-O {[%clk 0:04:50.3]} 7.
Bf4 {[%clk 0:04:49.7]} 7... e5 {[%clk 0:04:48.3]} 8. dxe5 {[%clk 0:04:46.7]}
8... dxe5 {[%clk 0:04:46.4]} 9. Nxe5 {[%clk 0:04:44.9]} 9... Nxe5 {[%clk
0:04:43.9]} 10. Bxe5 {[%clk 0:04:39.8]} 10... Qxd1 {[%clk 0:04:41.9]} 11. Raxd1
{[%clk 0:04:37.8]} 11... Bg4 {[%clk 0:04:36.3]} 12. f3 {[%clk 0:04:36.5]} 12...
Be6 {[%clk 0:04:28.3]} 13. Bxe6 {[%clk 0:04:33.8]} 13... fxe6 {[%clk 0:04:26.1]}
14. Bxc7 {[%clk 0:04:33.4]} 14... Nh5 {[%clk 0:04:20.7]} 15. Rd3 {[%clk
0:04:24]} 15... Nf4 {[%clk 0:04:18.7]} 16. Bxf4 {[%clk 0:04:20.6]} 16... Rxf4
{[%clk 0:04:14.6]} 17. Rfd1 {[%clk 0:04:15.7]} 17... Rc8 {[%clk 0:04:12.5]} 18.
Rd8+ {[%clk 0:04:12.7]} 18... Rxd8 {[%clk 0:04:09.2]} 19. Rxd8+ {[%clk
0:04:12.6]} 19... Bf8 {[%clk 0:04:05.4]} 20. Rd7 {[%clk 0:04:11.2]} 20... Rf7
{[%clk 0:04:03.8]} 21. Rxf7 {[%clk 0:04:09.6]} 21... Kxf7 {[%clk 0:04:02.7]} 22.
Kf2 {[%clk 0:04:05.8]} 22... a6 {[%clk 0:04:00.4]} 23. Ke3 {[%clk 0:04:04.5]}
23... Bc5+ {[%clk 0:03:58]} 24. Kd3 {[%clk 0:04:03.8]} 24... Bg1 {[%clk
0:03:54.4]} 25. h3 {[%clk 0:04:02.3]} 25... Bh2 {[%clk 0:03:52.9]} 26. Na4
{[%clk 0:03:57.6]} 26... Kf6 {[%clk 0:03:50.4]} 27. Nc5 {[%clk 0:03:55.8]} 27...
b6 {[%clk 0:03:35.7]} 28. Nxa6 {[%clk 0:03:54.3]} 28... Bd6 {[%clk 0:03:31]} 29.
Kc4 {[%clk 0:03:52.6]} 29... Kg5 {[%clk 0:03:27.2]} 30. Kb5 {[%clk 0:03:48.6]}
30... Be5 {[%clk 0:03:22.5]} 31. b3 {[%clk 0:03:42.4]} 31... Bd4 {[%clk
0:03:18.8]} 32. Nb8 {[%clk 0:03:34.8]} 32... Kf4 {[%clk 0:03:15.6]} 33. Nd7
{[%clk 0:03:34.2]} 33... Kg3 {[%clk 0:03:11]} 34. Nxb6 {[%clk 0:03:33.7]} 34...
Kxg2 {[%clk 0:03:10.1]} 35. a4 {[%clk 0:03:31.6]} 35... Kxf3 {[%clk 0:03:08.5]}
36. a5 {[%clk 0:03:30.6]} 36... Kxe4 {[%clk 0:03:07.4]} 37. a6 {[%clk
0:03:29.8]} 37... Kf5 {[%clk 0:03:02.3]} 38. a7 {[%clk 0:03:28.1]} 38... e5
{[%clk 0:03:00]} 39. a8=Q {[%clk 0:03:26.8]} 39... e4 {[%clk 0:02:58.1]} 40.
Qd5+ {[%clk 0:03:26.3]} 40... Kf4 {[%clk 0:02:56.1]} 41. Qxd4 {[%clk 0:03:24.3]}
41... Kf3 {[%clk 0:02:54.7]} 42. Nc4 {[%clk 0:03:21.9]} 1-0

[Event "Live Chess"]
[Site "Chess.com"]
[Date "2024.06.02"]
[Round "-"]
[White "Brooms1989"]
[Black "LL220284LL"]
[Result "0-1"]
[WhiteElo "1238"]
[BlackElo "2508"]
[TimeControl "300"]
[EndTime "3:43:29 PDT"]
[Termination "LL220284LL won by resignation"]

1. e4 {[%clk 0:04:56]} 1... d5 {[%clk 0:04:59.4]} 2. exd5 {[%clk 0:04:54]} 2...
Qxd5 {[%clk 0:04:59.3]} 3. d4 {[%clk 0:04:52.1]} 3... Nf6 {[%clk 0:04:54.7]} 4.
c4 {[%clk 0:04:50.2]} 4... Qd8 {[%clk 0:04:52.4]} 5. Nf3 {[%clk 0:04:46.7]} 5...
Bg4 {[%clk 0:04:51.3]} 6. Be2 {[%clk 0:04:45.8]} 6... e6 {[%clk 0:04:50.2]} 7.
h3 {[%clk 0:04:44.3]} 7... Bh5 {[%clk 0:04:49.2]} 8. O-O {[%clk 0:04:42.4]} 8...
Be7 {[%clk 0:04:46.1]} 9. Nc3 {[%clk 0:04:41.1]} 9... Nbd7 {[%clk 0:04:45.3]}
10. Bg5 {[%clk 0:04:34.2]} 10... O-O {[%clk 0:04:44]} 11. Nd2 {[%clk 0:04:20]}
11... Bxe2 {[%clk 0:04:42.4]} 12. Qxe2 {[%clk 0:04:19.9]} 12... c6 {[%clk
0:04:41.9]} 13. Nce4 {[%clk 0:04:11.3]} 13... Nxe4 {[%clk 0:04:40.1]} 14. Bxe7
{[%clk 0:04:10.2]} 14... Ng3 {[%clk 0:04:34.1]} 15. fxg3 {[%clk 0:03:57.1]}
15... Qxe7 {[%clk 0:04:32.4]} 16. b3 {[%clk 0:03:46.4]} 16... Rad8 {[%clk
0:04:30.7]} 17. Nf3 {[%clk 0:03:44.4]} 17... h6 {[%clk 0:04:26.8]} 18. Rad1
{[%clk 0:03:42.4]} 18... Qd6 {[%clk 0:04:21.9]} 19. Kh2 {[%clk 0:03:40.7]} 19...
a5 {[%clk 0:04:17.3]} 20. Ne5 {[%clk 0:03:39.3]} 20... Nxe5 {[%clk 0:04:11.7]}
21. dxe5 {[%clk 0:03:39.2]} 21... Qc5 {[%clk 0:04:07.4]} 22. Rxd8 {[%clk
0:03:19.8]} 22... Rxd8 {[%clk 0:04:07.3]} 23. Qf3 {[%clk 0:03:18.1]} 23... Rd7
{[%clk 0:04:03.3]} 24. Qf4 {[%clk 0:03:11.7]} 24... Qd4 {[%clk 0:03:55.1]} 25.
Rf2 {[%clk 0:02:59.6]} 25... Qd3 {[%clk 0:03:48.5]} 26. g4 {[%clk 0:02:47]}
26... Qd4 {[%clk 0:03:34.8]} 27. Qg3 {[%clk 0:02:37.6]} 27... Qa1 {[%clk
0:03:25.9]} 28. Qf4 {[%clk 0:02:32.2]} 28... a4 {[%clk 0:03:19.6]} 29. Qe3
{[%clk 0:02:14.4]} 29... axb3 {[%clk 0:03:13.3]} 30. axb3 {[%clk 0:02:12.6]}
30... Rd1 {[%clk 0:03:08.9]} 31. Qf3 {[%clk 0:02:05.6]} 31... Qxe5+ {[%clk
0:03:05.1]} 32. g3 {[%clk 0:02:00]} 32... Rd7 {[%clk 0:02:58.5]} 33. Re2 {[%clk
0:01:54.6]} 33... Qd4 {[%clk 0:02:56]} 34. Re4 {[%clk 0:01:45.1]} 34... Qb2+
{[%clk 0:02:54.1]} 35. Re2 {[%clk 0:01:43]} 35... Rd2 {[%clk 0:02:52.2]} 0-1

[Event "Live Chess"]
[Site "Chess.com"]
[Date "2024.06.02"]
[Round "-"]
[White "ZatixMajor"]
[Black "Victor_Bondar"]
[Result "1-0"]
[WhiteElo "2032"]
[BlackElo "1473"]
[TimeControl "300"]
[EndTime "3:43:30 PDT"]
[Termination "ZatixMajor won by checkmate"]

1. c4 {[%clk 0:04:59.6]} 1... d5 {[%clk 0:04:58.1]} 2. cxd5 {[%clk 0:04:58.1]}
2... Qxd5 {[%clk 0:04:56.9]} 3. Nc3 {[%clk 0:04:57.8]} 3... Qa5 {[%clk
0:04:55.6]} 4. d4 {[%clk 0:04:56.9]} 4... Nf6 {[%clk 0:04:54]} 5. Bd2 {[%clk
0:04:56.4]} 5... c6 {[%clk 0:04:52.4]} 6. e4 {[%clk 0:04:55.5]} 6... Bg4 {[%clk
0:04:45.8]} 7. Nf3 {[%clk 0:04:47.2]} 7... Qb6 {[%clk 0:04:40.1]} 8. Bc4 {[%clk
0:04:41.3]} 8... e6 {[%clk 0:04:38.3]} 9. Bg5 {[%clk 0:04:24.6]} 9... Qxb2
{[%clk 0:04:29.2]} 10. Rc1 {[%clk 0:04:12.7]} 10... Bb4 {[%clk 0:04:20.7]} 11.
Qd3 {[%clk 0:03:58.6]} 11... Qxc1+ {[%clk 0:04:16.2]} 12. Bxc1 {[%clk
0:03:57.1]} 12... Bxc3+ {[%clk 0:04:14.9]} 13. Qxc3 {[%clk 0:03:56.2]} 13...
Nxe4 {[%clk 0:04:09.7]} 14. Qb4 {[%clk 0:03:55.3]} 14... b5 {[%clk 0:04:02.4]}
15. Ba3 {[%clk 0:03:49]} 15... c5 {[%clk 0:03:42.5]} 16. Qxb5+ {[%clk
0:03:45.9]} 16... Nd7 {[%clk 0:03:36.3]} 17. Ne5 {[%clk 0:03:41.7]} 17... O-O
{[%clk 0:03:03.1]} 18. Nxd7 {[%clk 0:03:36.4]} 18... Rfd8 {[%clk 0:02:45.3]} 19.
Nxc5 {[%clk 0:03:28.6]} 19... Nd6 {[%clk 0:02:43.9]} 20. Qb3 {[%clk 0:03:27]}
20... Nxc4 {[%clk 0:02:41.8]} 21. Qxc4 {[%clk 0:03:26.9]} 21... Rac8 {[%clk
0:02:37.4]} 22. O-O {[%clk 0:03:23]} 22... h6 {[%clk 0:02:31.5]} 23. Qa6 {[%clk
0:03:21]} 23... Bf5 {[%clk 0:02:18.8]} 24. Qxa7 {[%clk 0:03:16.6]} 24... e5
{[%clk 0:02:16.4]} 25. dxe5 {[%clk 0:03:11.8]} 25... Re8 {[%clk 0:01:59.6]} 26.
e6 {[%clk 0:03:08.6]} 26... Bxe6 {[%clk 0:01:56.2]} 27. Nxe6 {[%clk 0:03:06.8]}
27... Rxe6 {[%clk 0:01:52.7]} 28. Rd1 {[%clk 0:03:03.7]} 28... Rce8 {[%clk
0:01:51.2]} 29. h3 {[%clk 0:02:58.3]} 29... Re2 {[%clk 0:01:36.1]} 30. Rd7
{[%clk 0:02:56.6]} 30... Re1+ {[%clk 0:01:25.9]} 31. Kh2 {[%clk 0:02:55.2]}
31... R1e6 {[%clk 0:01:18.9]} 32. Rxf7 {[%clk 0:02:53.3]} 32... Rg6 {[%clk
0:01:17.2]} 33. Bb2 {[%clk 0:02:47.3]} 33... h5 {[%clk 0:01:05]} 34. Rxg7+
{[%clk 0:02:45.6]} 34... Rxg7 {[%clk 0:01:03.6]} 35. Qxg7# {[%clk 0:02:43.8]}
1-0

[Event "Live Chess"]
[Site "Chess.com"]
[Date "2024.06.02"]
[Round "-"]
[White "Bradfield133"]
[Black "FlyingChessKestrel13"]
[Result "0-1"]
[WhiteElo "1855"]
[BlackElo "2073"]
[TimeControl "300"]
[EndTime "3:43:57 PDT"]
[Termination "FlyingChessKestrel13 won on time"]

1. c4 {[%clk 0:04:58.1]} 1... c6 {[%clk 0:04:58.8]} 2. Qa4 {[%clk 0:04:55.8]}
2... Nf6 {[%clk 0:04:57.1]} 3. g3 {[%clk 0:04:54.6]} 3... g6 {[%clk 0:04:55.5]}
4. Bg2 {[%clk 0:04:53.7]} 4... Bg7 {[%clk 0:04:54.4]} 5. Nf3 {[%clk 0:04:53.3]}
5... O-O {[%clk 0:04:53.8]} 6. O-O {[%clk 0:04:52.3]} 6... d6 {[%clk 0:04:51.9]}
7. d3 {[%clk 0:04:51.4]} 7... Bd7 {[%clk 0:04:49.4]} 8. Nbd2 {[%clk 0:04:47.4]}
8... c5 {[%clk 0:04:48.6]} 9. Qc2 {[%clk 0:04:45.5]} 9... Bc6 {[%clk 0:04:47.9]}
10. Rb1 {[%clk 0:04:41.2]} 10... Nbd7 {[%clk 0:04:44.6]} 11. b3 {[%clk
0:04:35.7]} 11... b6 {[%clk 0:04:43.2]} 12. Bb2 {[%clk 0:04:32.1]} 12... Qc7
{[%clk 0:04:41.1]} 13. e4 {[%clk 0:04:28.4]} 13... Qb7 {[%clk 0:04:38.7]} 14.
Ne1 {[%clk 0:04:21.5]} 14... e6 {[%clk 0:04:36.7]} 15. f4 {[%clk 0:04:19]} 15...
d5 {[%clk 0:04:35.1]} 16. cxd5 {[%clk 0:04:01.7]} 16... exd5 {[%clk 0:04:33.7]}
17. e5 {[%clk 0:03:59.7]} 17... Ne8 {[%clk 0:04:32.5]} 18. d4 {[%clk 0:03:55.4]}
18... Nc7 {[%clk 0:04:30.5]} 19. Rc1 {[%clk 0:03:25.9]} 19... Ne6 {[%clk
0:04:28.2]} 20. f5 {[%clk 0:03:16.6]} 20... gxf5 {[%clk 0:04:24.2]} 21. Rxf5
{[%clk 0:03:08.7]} 21... Rac8 {[%clk 0:04:22.1]} 22. Rh5 {[%clk 0:02:58.6]}
22... h6 {[%clk 0:04:17.8]} 23. dxc5 {[%clk 0:02:41.1]} 23... bxc5 {[%clk
0:04:13.3]} 24. Ndf3 {[%clk 0:02:30.6]} 24... d4 {[%clk 0:04:11.6]} 25. Qd2
{[%clk 0:02:19.3]} 25... Be4 {[%clk 0:04:04.7]} 26. Nh4 {[%clk 0:02:07.5]} 26...
Bxg2 {[%clk 0:03:59.6]} 27. Nexg2 {[%clk 0:02:04.9]} 27... Qb4 {[%clk
0:03:40.6]} 28. Qxb4 {[%clk 0:01:46.2]} 28... cxb4 {[%clk 0:03:39]} 29. Nf3
{[%clk 0:01:45.8]} 29... Rxc1+ {[%clk 0:03:31.7]} 30. Bxc1 {[%clk 0:01:43.9]}
30... Rd8 {[%clk 0:03:19.9]} 31. Bxh6 {[%clk 0:01:39]} 31... Bxh6 {[%clk
0:03:18.2]} 32. Rxh6 {[%clk 0:01:36.7]} 32... Ndc5 {[%clk 0:03:16.3]} 33. Kf1
{[%clk 0:01:18.2]} 33... Ne4 {[%clk 0:03:14]} 34. Rh4 {[%clk 0:01:00.1]} 34...
Nc3 {[%clk 0:02:52.6]} 35. Nf4 {[%clk 0:00:53]} 35... Nc5 {[%clk 0:02:45.5]} 36.
Nh5 {[%clk 0:00:48.1]} 36... d3 {[%clk 0:02:42.8]} 37. Nf6+ {[%clk 0:00:45.7]}
37... Kf8 {[%clk 0:02:38.4]} 38. Rxb4 {[%clk 0:00:32.9]} 38... d2 {[%clk
0:02:29.5]} 39. Nxd2 {[%clk 0:00:30.4]} 39... Rxd2 {[%clk 0:02:27.8]} 40. Rc4
{[%clk 0:00:29.8]} 40... Rd1+ {[%clk 0:02:24.7]} 41. Kg2 {[%clk 0:00:26.8]}
41... Rd2+ {[%clk 0:02:17.6]} 42. Kh3 {[%clk 0:00:25.2]} 42... Nd3 {[%clk
0:01:48]} 43. Rxc3 {[%clk 0:00:23.8]} 43... Nxe5 {[%clk 0:01:46.6]} 44. Ne4
{[%clk 0:00:19.5]} 44... Rxa2 {[%clk 0:01:45]} 45. b4 {[%clk 0:00:15]} 45... Rb2
{[%clk 0:01:30.7]} 46. Rc5 {[%clk 0:00:08.7]} 46... Nf3 {[%clk 0:01:24]} 47. b5
{[%clk 0:00:07.1]} 47... Rxh2+ {[%clk 0:01:21.1]} 48. Kg4 {[%clk 0:00:06.1]}
48... Nd4 {[%clk 0:01:18.9]} 49. Rd5 {[%clk 0:00:01.5]} 49... Ne6 {[%clk
0:01:10.9]} 0-1